Cogmind - Beta 11.1 @@@ ROGUE MODE // 2022.06.05 @ 10:32:56 Player: ktur Result: Destroyed by G-47 Trooper with Particle Gun Performance ------------- Evolutions (0) 0 Regions Visited (4) 800 Robots Destroyed (34) 170 Value Destroyed (738) 738 Prototype IDs (23) 460 Alien Tech Used (0) 0 Bonus (421) 421 TOTAL SCORE: 2589 Bonus ------- Follower Combat Kills 134 Aligned with FarCom 300 Friendly Fire -13 Cogmind --------- Core Integrity 0/250 Matter 300/300 Energy 228/250 System Corruption 2% Temperature Warm (177) Movement Treading (320) Ox2 Location -9/Mines Parts ------- > --- POWER (1) -------- Ion Engine > --- PROPULSION (2) --- Light Treads Light Treads > --- UTILITY (2) ------ Improved Heat Sink Huge Storage Unit > --- WEAPON (2) ------- Medium Laser Beam Cannon > --- INVENTORY (25) --- Light Ion Engine Light Ion Engine Light Nuclear Core Compact Wheel Flight Unit Flight Unit Flight Unit Flight Unit Flight Unit Large Storage Unit High-capacity Matter Pod (200) Transport Network Coupler 0b10 Alert Chip Chronowheel EM Pulse Gun Light Assault Rifle Light Assault Rifle Light Assault Rifle Grenade Launcher Rocket Launcher Plasma Cutter Longsword +1 Peak State ------------ > --- POWER ------------ Ion Engine > --- PROPULSION ------- Light Treads Light Treads > --- UTILITY ---------- Improved Heat Sink Huge Storage Unit > --- WEAPON ----------- Medium Laser Beam Cannon > --- INVENTORY -------- Light Ion Engine Light Ion Engine Light Nuclear Core Compact Wheel Flight Unit Flight Unit Flight Unit Flight Unit Flight Unit Large Storage Unit High-capacity Matter Pod Transport Network Coupler 0b10 Alert Chip Chronowheel EM Pulse Gun Light Assault Rifle Light Assault Rifle Light Assault Rifle Grenade Launcher Rocket Launcher Plasma Cutter Longsword +1 [Rating: 14] Favorites ----------- Power Ion Engine Engine Ion Engine Propulsion Light Treads Treads Light Treads Wheel Compact Wheel Utility Heat Sink Device Heat Sink Storage Large Storage Unit Weapon Light Assault Rifle Energy Gun Medium Laser Energy Cannon Beam Cannon Ballistic Gun Light Assault Rifle Build | -11 -10 -10 -10 -9 ------- Run | Scr Mat Min Exi Min Slots Evolved . | . . . . . Power . | . . . . . Propulsion . | . . . . . Utility . | . . . . . Weapon . | . . . . . Parts Attached 25 | 6 10 2 5 2 Power 3 | 1 1 1 . . Engine 3 | 1 1 1 . . Core . | . . . . . Reactor . | . . . . . Propulsion 5 | 2 3 . . . Treads 4 | 2 2 . . . Leg . | . . . . . Wheel 1 | . 1 . . . Hover . | . . . . . Flight . | . . . . . Utility 9 | 1 4 . 3 1 Device 4 | . 3 . 1 . Storage 5 | 1 1 . 2 1 Processor . | . . . . . Hackware . | . . . . . Protection . | . . . . . Artifact . | . . . . . Weapon 8 | 2 2 1 2 1 Energy Gun 1 | . . . . 1 Energy Cannon 3 | . 2 . 1 . Ballistic Gun 4 | 2 . 1 1 . Ballistic Cannon . | . . . . . Launcher . | . . . . . Special Weapon . | . . . . . Impact Weapon . | . . . . . Slashing Weapon . | . . . . . Piercing Weapon . | . . . . . Special Melee Weapon . | . . . . . Unidentified Prototypes . | . . . . . Parts Lost 3 | . 2 1 . . Power 1 | . . 1 . . Propulsion 1 | . 1 . . . Utility . | . . . . . Weapon 1 | . 1 . . . Highest Loss Streak 2 | . 2 1 . . To Critical Strikes . | . . . . . Average Slot Usage (%) 93 | . 95 100 71 100 Engine 14 | . 14 14 14 14 Treads 25 | . 20 28 28 28 Wheel 1 | . 5 . . . Device 13 | . 12 14 14 14 Storage 14 | . 14 14 14 14 Energy Gun 2 | . . . . 12 Energy Cannon 9 | . 8 14 . 14 Ballistic Gun 10 | . 19 14 . 1 Naked Turns . | . . . . . Heaviest Build 91 | 12 30 30 86 91 Greatest Support 40 | 40 40 40 40 40 Greatest Overweight (x) 2 | . 1 . 2 2 Average Overweight (x) . | . . . 1 . Largest Inventory Capacity 25 | 8 15 15 25 25 Average Capacity 16 | 7 8 15 24 21 Most Carried 22 | 6 11 15 20 22 Average Carried 13 | 4 7 13 18 19 Final Capacity 25 | 8 15 15 15 25 Final Carried 22 | 6 11 15 15 22 Class Distribution -------------------- 100% | Mutant Dominant Class ---------------- Mutant | -10/Materials Mutant | -10/Mines Mutant | -10/Exiles Mutant | -9/Mines Resources | -11 -10 -10 -10 -9 ----------- Run | Scr Mat Min Exi Min Matter Collected 871 | 219 401 103 . 148 Remotely . | . . . . . Salvage Created 985 | . 770 64 . 151 Parts 71 | . 54 8 . 9 Haulers Intercepted 1 | . 1 . . . Recyclers Shooed 3 | . 1 . . 2 Parts Field Recycled . | . . . . . Retrieved Matter . | . . . . . Parts Self-Destructed . | . . . . . Prevented . | . . . . . Kills | -11 -10 -10 -10 -9 ------- Run | Scr Mat Min Exi Min Combat Hostiles Destroyed 28 | . 18 3 . 7 Guns 19 | . 16 2 . 1 Cannons 9 | . 2 1 . 6 Classes Destroyed 6 | . 6 . . . Hauler 1 | . 1 . . . Recycler 1 | . 1 . . . Operator 2 | . 2 . . . Watcher 2 | . 2 . . . Swarmer 13 | . 6 2 . 5 Grunt 15 | . 12 1 . 2 Best Kill Streak 7 | . 7 2 . 3 Combat Bots Only 6 | . 6 2 . 3 Max Kills in Single Turn 2 | . 2 1 . 1 Gunslinging 1 | . 1 . . . Exploded . | . . . . . Melee . | . . . . . Uniques/NPCs Destroyed . | . . . . . Combat | -11 -10 -10 -10 -9 -------- Run | Scr Mat Min Exi Min Damage Taken 1038 | . 728 54 . 256 Core 261 | . 134 18 . 109 Absorbed by Shields . | . . . . . Regen/Repaired (Parts) 125 | . 125 . . . Core Remaining (%) 100 | 100 . . . . Volleys Fired 97 | . 72 7 . 18 Largest 2 | . 2 2 . 2 Hottest 110 | . 80 80 . 110 Shots Fired 192 | . 141 15 . 36 Gun 150 | . 124 8 . 18 Cannon 42 | . 17 7 . 18 Launcher . | . . . . . Special . | . . . . . Kinetic 134 | . 124 8 . 2 Thermal 58 | . 17 7 . 34 Explosive . | . . . . . Electromagnetic . | . . . . . Robot Hit Streak 11 | . 10 11 . 5 Robot Miss Streak 3 | . 3 1 . 2 Penetration Max . | . . . . . Secondary Targets 4 | . 4 . . . Max Gunslinging Chain 1 | . 1 . . . Shots Hit Robots 129 | . 97 11 . 21 Core Hits 61 | . 45 9 . 7 Critical Kills . | . . . . . Critical Parts Destroyed . | . . . . . Critical Strikes 2 | . . . . 2 Burn 2 | . . . . 2 Melee Attacks . | . . . . . Impact . | . . . . . Slashing . | . . . . . Piercing . | . . . . . Sneak Attacks . | . . . . . Combat Hostiles . | . . . . . Follow-up Attacks . | . . . . . Damage Inflicted 1430 | . 926 139 . 365 Guns 888 | . 709 65 . 114 Cannons 502 | . 196 72 . 234 Explosions . | . . . . . Melee . | . . . . . Ramming 40 | . 21 2 . 17 Kinetic 774 | . 709 65 . . Thermal 616 | . 196 72 . 348 Explosive . | . . . . . Electromagnetic . | . . . . . Impact . | . . . . . Slashing . | . . . . . Piercing . | . . . . . Highest Corruption 2 | . 2 2 2 2 Average Corruption 1 | . 1 2 2 2 Corruption Purged . | . . . . . Corruption Blocked . | . . . . . Effects 38 | . 4 15 12 7 Message Errors 7 | . 2 2 2 1 Matter Fused 17 | . . 9 7 1 Heat Flow Errors 3 | . . 1 1 1 Energy Discharges 3 | . 2 . 1 . Data Loss (minor) 5 | . . 1 1 3 Data Loss (major) 2 | . . 1 . 1 Misfires 1 | . . 1 . . Overload Shots . | . . . . . Overflow Damage 8 | . . . . 8 Projectiles 8 | . . . . 8 Explosions . | . . . . . Melee . | . . . . . Knockbacks . | . . . . . Impact . | . . . . . Kinetic . | . . . . . Secondary . | . . . . . Self-Inflicted Damage . | . . . . . Shots . | . . . . . Rammed 9 | . 4 1 . 4 Targets Rammed 10 | . 5 1 . 4 Kicked . | . . . . . Crushed 1 | . 1 . . . Highest Temperature 261 | . 58 212 165 261 Average Temperature 41 | . 22 49 92 47 Received Heat Transfer 489 | . 318 15 . 156 Siege Activations . | . . . . . Robots Corrupted . | . . . . . Combat Hostiles . | . . . . . Parts Fried . | . . . . . Impact Corruptions . | . . . . . Robots Melted . | . . . . . Combat Hostiles . | . . . . . Parts Melted 4 | . 1 . . 3 Heat Transferred 1517 | . 407 148 . 962 Parts Sabotaged . | . . . . . Parts Stolen . | . . . . . Parts Stripped . | . . . . . Power Chain Reactions . | . . . . . Missiles Intercepted . | . . . . . Alert | -11 -10 -10 -10 -9 ------- Run | Scr Mat Min Exi Min Peak Influence 382 | . 382 134 . 173 Initial 38 | . . 38 . . Average 104 | . 184 46 . 65 Maximum Alert Level 1 | . 1 . . . Low Security (%) 84 | 100 60 100 . 100 Level 1 15 | . 39 . . . Level 2 . | . . . . . Level 3 . | . . . . . Level 4 . | . . . . . Level 5 . | . . . . . High Security . | . . . . . Max Security . | . . . . . Squads Dispatched 3 | . 3 . . . Investigation 1 | . 1 . . . Extermination . | . . . . . Reinforcement 2 | . 2 . . . Assault . | . . . . . Garrison . | . . . . . Intercept . | . . . . . Searches Triggered . | . . . . . Construction Impeded . | . . . . . Haulers Reinforced . | . . . . . Active Scanning Responses . | . . . . . Cargo Convoy Interrupts . | . . . . . Stealth | -11 -10 -10 -10 -9 --------- Run | Scr Mat Min Exi Min Distress Signals 3 | . 3 . . . Communications Jammed . | . . . . . Distress Signals . | . . . . . Times Spotted 44 | . 29 4 . 11 Peak Tracking Total 4 | . 4 1 . 4 Tactical Retreats 2 | . 1 1 . . Traps | -11 -10 -10 -10 -9 ------- Run | Scr Mat Min Exi Min Traps Triggered 3 | . 3 . . . Indirectly . | . . . . . Trap Hack Attempts . | . . . . . Triggered . | . . . . . Disarmed . | . . . . . Reprogrammed . | . . . . . Reused . | . . . . . Traps Extracted . | . . . . . Installed . | . . . . . Triggered . | . . . . . Machines | -11 -10 -10 -10 -9 ---------- Run | Scr Mat Min Exi Min Machines Disabled . | . . . . . Max in Single Turn . | . . . . . Machines Sabotaged . | . . . . . Garrisons Compromised . | . . . . . Overloaded Fab Kills . | . . . . . Hacking | -11 -10 -10 -10 -9 --------- Run | Scr Mat Min Exi Min Machines Accessed 9 | . 7 . 2 . Terminals 6 | . 6 . . . Fabricators . | . . . . . Repair Stations 1 | . 1 . . . Recycling Units . | . . . . . Scanalyzers . | . . . . . Garrison Access . | . . . . . Total Hacks 23 | . 21 . 2 . Successful 9 | . 7 . 2 . Failed 14 | . 14 . . . Catastrophic 1 | . 1 . . . Database Lockouts . | . . . . . Manual 20 | . 19 . 1 . Terminals 19 | . 19 . . . Fabricators . | . . . . . Repair Stations 2 | . 2 . . . Recycling Units . | . . . . . Scanalyzers . | . . . . . Garrison Access . | . . . . . Terminal Hacks 5 | . 3 . 2 . Record 1 | . . . 1 . Robot Analysis 1 | . 1 . . . Alert Level 1 | . 1 . . . Hauler Manifests 1 | . 1 . . . EX-Prototype ID Bank 1 | . . . 1 . Fabricator Hacks . | . . . . . Repair Station Hacks 2 | . 2 . . . Scan Component 1 | . 1 . . . Repair 1 | . 1 . . . Recycling Unit Hacks . | . . . . . Scanalyzer . | . . . . . Garrison Access Hacks . | . . . . . Unauthorized Hacks 2 | . 2 . . . Terminals 2 | . 2 . . . Botnet 1 | . 1 . . . Operators 1 | . 1 . . . Fabricators . | . . . . . Repair Stations . | . . . . . Recycling Units . | . . . . . Scanalyzers . | . . . . . Garrison Access . | . . . . . Data Cores Recovered . | . . . . . Used . | . . . . . Hacking Detections 6 | . 6 . . . Full Trace Events . | . . . . . Feedback Events . | . . . . . Feedback Blocked . | . . . . . Robot Schematics Acquired . | . . . . . Robots Built . | . . . . . Authchips . | . . . . . Time . | . . . . . Total Robot Build Rating . | . . . . . Part Schematics Acquired . | . . . . . Parts Built . | . . . . . Authchips . | . . . . . Time . | . . . . . Total Part Build Rating . | . . . . . Parts Repaired 1 | . 1 . . . Time 26 | . 26 . . . Parts Recycled . | . . . . . Recycled Matter . | . . . . . Retrieved Matter . | . . . . . Retrieved Components . | . . . . . Parts Scanalyzed . | . . . . . Part Schematics Acquired . | . . . . . Parts Damaged . | . . . . . Bothacking | -11 -10 -10 -10 -9 ------------ Run | Scr Mat Min Exi Min Used RIF Installer . | . . . . . Robots Hacked . | . . . . . Non-combat . | . . . . . Combat . | . . . . . Robot Hacks Applied . | . . . . . Relay Couplers Released . | . . . . . Fabnet Peak Effective % . | . . . . . Robots Rewired . | . . . . . Allies Hacked . | . . . . . Hacks Repelled . | . . . . . Allies | -11 -10 -10 -10 -9 -------- Run | Scr Mat Min Exi Min Total Allies 4 | . . 4 . . Largest Group 3 | . . 3 3 3 Highest-Rated Group 40 | . . 40 40 40 Highest-Rated Ally 31 | . . 31 16 16 Total Orders . | . . . . . Ally Attacks 32 | . . 7 . 25 Total Damage 409 | . . 145 . 264 Kills 6 | . . 3 . 3 Allies Corrupted . | . . . . . Allies Melted . | . . . . . Intel | -11 -10 -10 -10 -9 ------- Run | Scr Mat Min Exi Min Robot Analysis Total 1 | . 1 . . . Derelict Logs Recovered 1 | . . 1 . . Drone Launches . | . . . . . Drone Recoveries . | . . . . . Exploration | -11 -10 -10 -10 -9 ------------- Run | Scr Mat Min Exi Min Turns Passed 4085 | 94 1275 1020 796 900 Spaces Moved 1884 | 54 623 619 253 335 Core 6 | 6 . . . . Treads 1818 | 48 563 619 253 335 Legs . | . . . . . Wheels 60 | . 60 . . . Hover . | . . . . . Flight . | . . . . . Fastest Speed 50 | 50 100 160 160 160 Average Speed 194 | 147 160 160 310 239 Slowest Speed 320 | 160 240 160 320 320 Overloaded Moves . | . . . . . Propulsion Burnouts . | . . . . . Robots Hopped . | . . . . . Cave-ins Triggered . | . . . . . Exploration Rate (%) 58 | 5 78 99 59 52 Regions Visited 4 Branch Regions 3 Pre-discovered Areas 1 | . . . 1 . Known Exits Taken . | . . . . . Unknown Exits Taken 4 | 1 1 1 1 . Scrap Searched 2 | . . 1 . 1 Spaces Dug . | . . . . . Terrain Destroyed . | . . . . . Melee . | . . . . . Projectile . | . . . . . AOE . | . . . . . Terrain Rammed . | . . . . . Walls Destroyed . | . . . . . Machines Disabled . | . . . . . Actions | -11 -10 -10 -10 -9 --------- Run | Scr Mat Min Exi Min Total 2142 | 65 784 635 265 393 Wait 82 | . 56 3 . 23 Move 1880 | 53 622 618 252 335 Hop . | . . . . . Pick Up 33 | 6 11 4 3 9 Fast Attach 11 | 6 5 . . . Attach 6 | . 2 1 3 . Detach 2 | . . . 2 . Swap 8 | . 3 1 2 2 Drop 13 | . 8 . 3 2 Fire 97 | . 72 7 . 18 Melee . | . . . . . Ram . | . . . . . Kick . | . . . . . Crush 10 | . 5 1 . 4 Escape Stasis . | . . . . . Rewire . | . . . . . Trap . | . . . . . Miscellaneous . | . . . . . Route ------- -11/Scrapyard -10/Materials (discovered 3 exits: [*Mat x2] / [*Min]) -10/Mines (discovered 3 exits: [*Mat x2] / *Exi) -10/Exiles -9/Mines History --------- Turn | Location | Event 16 | -11/Scrapyard | Discovered new exit (range 15) 95 | -11/Scrapyard | Entered Materials 311 | -10/Materials | Build established: Mutant 644 | -10/Materials | Discovered new exit (range 15) 905 | -10/Materials | Repaired Lgt. Treads 916 | -10/Materials | Core integrity fell below 50% 939 | -10/Materials | Discovered new exit (range 5) 1131 | -10/Materials | Discovered new exit (range 16) 1370 | -10/Materials | Entered Mines 1420 | -10/Mines | Discovered new exit (range 15) 1423 | -10/Mines | Discovered new exit (range 14) 1442 | -10/Mines | Received a Mining Laser from a helpful Derelict 1494 | -10/Mines | Deemed a non-threat by the Exiles lab entrance 1768 | -10/Mines | A weapon hastily lodged in a ceiling crevice suddenly fell to the ground 1964 | -10/Mines | Learned Materials emergency access door positions 2305 | -10/Mines | Assisted by bots powering up and referring to "LRC-V3" 2384 | -10/Mines | Discovered new exit (range 5) 2390 | -10/Mines | Entered Exiles 2390 | -10/Exiles | Accompanied by 3 allies 2457 | -10/Exiles | Met 8R-AWN 2505 | -10/Exiles | Met EX-HEX 2595 | -10/Exiles | Met EX-BIN 2633 | -10/Exiles | Met EX-DEC 2646 | -10/Exiles | Learned location of Zion (-6) 2745 | -10/Exiles | Aligned with FarCom system 2748 | -10/Exiles | Given EX-Vault access code 2822 | -10/Exiles | Opened EX-Vault 2841 | -10/Exiles | Found 0b10 Alert Chip 2848 | -10/Exiles | Found Longsword +1 2862 | -10/Exiles | Found Chronowheel 2927 | -10/Exiles | Warned to stay clear of 0b10 Research branches 3135 | -10/Exiles | Discovered new exit (range 15) 3186 | -10/Exiles | Stole three prototypes: 0b10 Alert Chip, Chronowheel, Longsword +1 3186 | -10/Exiles | Entered Mines 3186 | -9/Mines | Accompanied by 3 allies 3278 | -9/Mines | Received a Rocket Launcher from a helpful Derelict 4079 | -9/Mines | Core integrity fell below 20% 4086 | -9/Mines | Destroyed by G-47 Trooper with Particle Gun Last Messages --------------- 03587_ K-01 Serf collects debris. 03635_ Trooper 1a destroyed. 03635_ G-47 Trooper suffers critical hit (Burn). 03638_ G-47 Trooper destroyed. 03640_ G-34 Mercenary destroyed. 03656_ R-06 Scavenger collects Aluminum Leg. 03660_ R-06 Scavenger collects Imp. Heat Sink. 03738_ System corrupted: Component data lost. 03774_ System corrupted: Matter fused (-9). 03808_ Slammed into T-07 Excavator. 03814_ Slammed into K-01 Serf. 03815_ System corrupted: Heat flow error (+295). 03886_ System corrupted: Component data lost. 04067_ Trooper 1b destroyed. 04072_ Mercenary 1a destroyed. 04077_ G-34 Mercenary suffers critical hit (Burn). 04077_ Ion Engine melted. 04077_ Aluminum Leg melted. 04077_ G-34 Mercenary destroyed. 04080_ Critical hit (Burn: +37). Map ----- +----------------------------------------------------+ | ??????????????????????????????????????????????? | | ??????????????????????????????????????????????? | | ??????????????????????????????????????????????? | | ??????????????????????????????????????????????? | | ??????????????????????????????????###?????????? | | ????????????????????????????????### #?????### | | ???????????????????????????????## ##???# ? | | ???????????????????????????????# ##??# #? | | ???????????????????????????????# #### #? | | ????????????????????????????????# #? | | ?????????????????? ???????????????# #? | | ????????????????# ??????????####?## * ### ##? | | ????????????????# ?????????## ##?####=#?# #?? | | ????????????##### ##??????## #????# #?# #?? | | ????????????# ##????# #????# #?# ### | | ????????????? #???## #????# #?# | | ?????????????? ????# #?#### ####### | | ?????????????? ????# ##?# #???? | | ??????????????? ????# ##??# #???? | | ???????????????? ????## ##??# """ #???? | | ????????????????? ?##### ##?# """ ###?? | | ?????????????????? ?# #?# """ #?? | | ??????????????????# #?# ### #?# # #?? | | ??????????????????# #?# #?# ##?######## #?? | | ??????????????????#g%### ### ###?????????# #?? | | ??????????????????#%[g@[ ## ##???????????# #?? | | ??????????????????# [###### #????????????# #?? | | ??????????????????# #?### #????????????# #?? | | ??????????????????# ### ##????????????# #?? | | ??????????????????# ## ##???????????## #?? | | ??????????????????# ## ####???????## ##? | | ??????????????????# ## ##??????# ## | | ?????????????????? ## #??????# # | | ?????????????????? ## """ #?###### | | ??????????????????#### """ ##?# %* | | ?????????????????????# """ #??# ## ## %[%= | | ?????????????????????## #??# ## ###### | | ??????????????????????## ##??# ## #????## | | ???????????????????????## ##???# ## #?????# | | ????????????????????????## ####### ## #?????? | | ?????????????????????????## ## #?????? | | ???????????????????????#### ########## #?????? | | ???????????????????????# ##???????# #?????? | | ???????????????????????# ## #???????# #?????? | | ???????????????????????# #### #???????# #?????? | | ?????????????????####??# #?## ######### ####### | | ????????????????## #### #?# ## | | ????????????????# #?## ## | | ????????????????# ### #??# ## """ """ | | ????????????????# ### #### ### """ """ | +----------------------------------------------------+ Best States ------------- Heat Dissipation 39 Energy Generation 10 Energy Capacity 250 Matter Stores 300 Matter Capacity 300 Sight Range 16 Terrain Scan Density 10 Evasion (%) 40 Recoil Reduction 2 Item Schematics ----------------- None Robot Schematics ------------------ None Fabricated ------------ Nothing Alien Tech Used ----------------- None Achievements -------------- None Challenges ------------ None Game ------ Seed StormChromaticRipper Manual? 0 Play Time 00:17:53 Cumulative 460.9 hours Start 2022.06.04 @ 02:43:39 End 2022.06.05 @ 10:32:56 Sessions 4 Manual Loads 0 Difficulty Rogue Special Mode None Game No. 437 Rogue 437 Adventurer 0 Explorer 0 Win Type - Total 22 Types 13/2/4/2/0/0/0/1/0 Lore% 94 Gallery% 92 Achievement% 77 Wizard Run 0 Options --------- ASCII 0 Keyboard 0 Movement Arrows Keybinds 0 Fullscreen 1 Font 18/Smallcaps Map View 76x50 Tactical HUD 1 Map Filters NONE Filters NONE Steam 1 RUN: b486b315-a93a-470e-881e-4b4365ccbb67